fUST/lending_fUST_20250418
["ID","MTS","AMOUNT","RATE_DAILY","PERIOD"]
[358327854,1744935821174,-250.0,0.00046525,10]
[358327855,1744935821201,-250.0,0.00046525,10]
[358327856,1744935821228,-275.84997,0.00046525,10]
[358327875,1744936020934,171.53656775,0.00025,120]
[358327932,1744936232444,-2198.96,0.00020123,2]
[358327933,1744936232456,-2160.4148423,0.00020123,2]
[358327934,1744936232466,-279.535833,0.00020141,2]
[358327935,1744936232476,-1846.08654515,0.00020653,2]
[358327972,1744936238539,-399.82719863,0.00020653,2]
[358327985,1744936238647,-946.37722602,0.00020653,2]
[358327987,1744936238660,-1807.7090302,0.00020653,2]
[358327988,1744936238670,-300.0,0.00020847,2]
[358327989,1744936238680,-300.0,0.00020847,2]
[358327990,1744936238689,-707.0,0.00020848,2]
[358327991,1744936238699,-544.0,0.00020848,2]
[358327992,1744936238710,-402.0,0.00020848,2]
[358327993,1744936238720,-261.71237996,0.0002088,2]
[358327994,1744936238729,-670.2304111,0.00021135,2]
[358327995,1744936238741,-1171.33976516,0.00021135,2]
[358327997,1744936238751,-1881.78895543,0.0002123,2]
[358327999,1744936238771,-34853.70272492,0.0002123,2]
[358328000,1744936238782,-500.0,0.0002123,2]
[358328001,1744936238792,-500.0,0.0002123,2]
[358328002,1744936238801,-500.0,0.0002123,2]
[358328004,1744936238811,-500.0,0.0002123,2]
[358328006,1744936238820,-500.0,0.0002123,2]
[358328008,1744936238830,-500.0,0.0002123,2]
[358328010,1744936238840,-500.0,0.0002123,2]
[358328012,1744936238850,-500.0,0.0002123,2]
[358328014,1744936238859,-500.0,0.0002123,2]
[358328016,1744936238868,-500.0,0.0002123,2]
[358328018,1744936238879,-500.0,0.0002123,2]
[358328020,1744936238889,-594.00782883,0.0002123,2]
[358328022,1744936238898,-500.0,0.0002123,2]
[358328025,1744936238912,-385.10089948,0.0002123,2]
[358328027,1744936238922,-500.0,0.00021235,2]
[358328029,1744936238932,-360.86563579,0.00021235,2]
[358328031,1744936238942,-14390.42948668,0.00021236,2]
[358328216,1744936240726,-5148.49978,0.00021236,2]
[358328385,1744936251860,154.0,0.0001801,2]
[358328386,1744936374304,473.1780327,0.00018,3]
[358328600,1744937431776,-447.3501462,0.00019136,2]
[358328603,1744937431797,-1064.09987847,0.00019136,2]
[358328605,1744937431807,-300.0,0.00020103,2]
[358328607,1744937431817,-300.0,0.00020103,2]
[358328609,1744937431827,-6684.0269815,0.00020104,2]
[358328612,1744937431840,-5211.4425317,0.00020104,2]
[358328614,1744937431850,-245.24624641,0.00020775,2]
[358328616,1744937431861,-250.0,0.00020775,2]
[358328618,1744937431871,-199.52946686,0.00020775,2]
[358328620,1744937431881,-543.0,0.00020875,2]
[358328622,1744937431891,-707.0,0.00020875,2]
[358328624,1744937431900,-251.3,0.00020875,2]
[358328626,1744937431910,-1611.37390421,0.00021035,2]
[358328628,1744937431920,-175.87041877,0.00021036,2]
[358328630,1744937431931,-602.60594505,0.00021134,2]
[358328632,1744937431941,-320.56676661,0.00021134,2]
[358328634,1744937431951,-500.0,0.00021134,2]
[358328637,1744937431961,-500.0,0.00021134,2]
[358328639,1744937431972,-500.0,0.00021134,2]
[358328641,1744937431982,-500.0,0.00021134,2]
[358328643,1744937431992,-443.70269282,0.00021134,2]
[358328645,1744937432003,-500.0,0.00021134,2]
[358328647,1744937432013,-500.0,0.00021134,2]
[358328649,1744937432023,-500.0,0.00021134,2]
[358328651,1744937432033,-91300.75647982,0.00021135,2]
[358328653,1744937432043,-6755.15663314,0.00021135,3]
[358328655,1744937432053,-28119.87622835,0.00021135,2]
[358328761,1744937437714,-150.187,0.00020875,2]
[358328763,1744937437724,-402.0,0.00020875,2]
[358328765,1744937437734,-17560.05140761,0.00021135,2]
[358328767,1744937437746,-568.62606248,0.00021135,2]
[358328770,1744937437758,-1020.0,0.00021135,2]
[358328777,1744937437824,-792.2,0.00021135,2]
[358328779,1744937437836,-1474.68474239,0.00021135,2]
[358328785,1744937437879,-37297.69374539,0.00021135,2]
[358329151,1744937441487,-0.01610001,0.00021135,2]
[358329153,1744937441501,-10270.44991,0.00021135,2]
[358329155,1744937441512,-46034.46598377,0.00021135,2]
[358329157,1744937441522,-93091.56579303,0.00021136,2]
[358329159,1744937441533,-41714.74929592,0.00021136,2]
[358329164,1744937441567,-2228.14330932,0.00021136,2]
[358329166,1744937441580,-545.1936999,0.00021136,2]
[358329312,1744937443055,-475.65883774,0.00021136,2]
[358329314,1744937443067,-6044.84798019,0.00021136,2]
[358329320,1744937443113,-737.16808519,0.00021136,2]
[358329405,1744937445823,-3046.74680909,0.00021136,2]
[358329409,1744937445890,-4751.487,0.00021136,2]
[358329410,1744937445903,-524.27496881,0.00021136,2]
[358329411,1744937446015,-21149.67219374,0.00021136,2]
[358329546,1744938631863,-1017.34189566,0.00019036,2]
[358329547,1744938631873,-197.2134218,0.00019894,2]
[358329548,1744938631882,-263.781907,0.00019942,2]
[358329549,1744938631892,-879.2333526,0.00020269,2]
[358329550,1744938631902,-1928.98614306,0.000208,2]
[358329551,1744938631912,-1000.67,0.000208,2]
[358329552,1744938631922,-300.0,0.00020872,2]
[358329553,1744938631931,-300.0,0.00020872,2]
[358329554,1744938631942,-500.0,0.00020873,2]
[358329555,1744938631952,-614.33710999,0.00020873,2]
[358329557,1744938631962,-500.0,0.00020873,2]
[358329558,1744938631972,-500.0,0.00020873,2]
[358329559,1744938631981,-500.0,0.00020873,2]
[358329562,1744938631991,-500.0,0.00020873,2]
[358329564,1744938632001,-500.0,0.00020873,2]
[358329566,1744938632010,-500.0,0.00020873,2]
[358329568,1744938632020,-500.0,0.00020873,2]
[358329570,1744938632029,-500.0,0.00020873,2]
[358329572,1744938632039,-500.0,0.00020873,2]
[358329574,1744938632049,-500.0,0.00020873,2]
[358329576,1744938632058,-500.31146044,0.00020873,2]
[358329578,1744938632070,-500.0,0.00020873,2]
[358329580,1744938632079,-502.15852407,0.00020873,2]
[358329582,1744938632089,-500.0,0.00020873,2]
[358329584,1744938632098,-500.0,0.00020873,2]
[358329586,1744938632107,-500.0,0.00020873,2]
[358329588,1744938632117,-300.0,0.00020873,2]
[358329590,1744938632126,-500.0,0.00020873,2]
[358329592,1744938632135,-500.0,0.00020873,2]
[358329594,1744938632145,-268.557665,0.00020873,2]
[358329596,1744938632155,-500.0,0.00020873,2]
[358329598,1744938632164,-500.0,0.00020873,2]
[358329600,1744938632174,-500.0,0.00020873,2]
[358329602,1744938632184,-500.0,0.00020873,2]
[358329604,1744938632195,-500.0,0.00020873,2]
[358329605,1744938632205,-543.0,0.00020875,2]
[358329606,1744938632215,-707.0,0.00020875,2]
[358329607,1744938632226,-421.82416154,0.00020899,2]
[358329608,1744938632235,-500.0,0.00020899,2]
[358329609,1744938632245,-500.0,0.00020899,2]
[358329610,1744938632254,-500.0,0.00020899,2]
[358329611,1744938632264,-500.0,0.00020899,2]
[358329612,1744938632274,-500.0,0.00020899,2]
[358329613,1744938632283,-500.0,0.00020899,2]
[358329614,1744938632292,-500.0,0.00020899,2]
[358329615,1744938632301,-500.0,0.00020899,2]
[358329616,1744938632311,-500.0,0.00020899,2]
[358329617,1744938632321,-500.0,0.00020899,2]
[358329618,1744938632332,-500.0,0.00020899,2]
[358329619,1744938632342,-500.0,0.00020899,2]
[358329620,1744938632352,-500.0,0.00020899,2]
[358329621,1744938632361,-513.56212842,0.00020899,2]
[358329622,1744938632371,-191781.63002673,0.000209,2]
[358329623,1744938632383,-162072.1177286,0.000209,2]
[358330910,1744938650609,-402.0,0.00020875,2]
[358330912,1744938650619,-9833.15041,0.000209,2]
[358330946,1744938650934,-540.23961161,0.000209,2]
[358330948,1744938650946,-1418.45208853,0.000209,2]
[358331690,1744939296566,155.0,0.0001801,2]
[358331767,1744939832017,-678.22793044,0.000189,2]
[358331769,1744939832027,-916.60011555,0.00018936,2]
[358331770,1744939832037,-250.0,0.00018936,2]
[358331771,1744939832047,-263.7819078,0.00019934,2]
[358331773,1744939832056,-300.0,0.00019999,2]
[358331775,1744939832065,-300.0,0.00019999,2]
[358331776,1744939832075,-500.0,0.00019999,2]
[358331777,1744939832084,-500.0,0.00019999,2]
[358331778,1744939832094,-500.0,0.00019999,2]
[358331779,1744939832104,-500.0,0.00019999,2]
[358331780,1744939832114,-150.617,0.0002,7]
[358331781,1744939832123,-2837.664037,0.0002,2]
[358331796,1744939838349,-500.0,0.00019999,2]
[358331798,1744939838359,-401.0,0.00019999,2]
[358332277,1744939846471,-99.0,0.00019999,2]
[358332279,1744939846481,-473.24483008,0.00019999,2]
[358332281,1744939846493,-500.0,0.00019999,2]
[358332283,1744939846503,-500.0,0.00019999,2]
[358332285,1744939846513,-500.0,0.00019999,2]
[358332287,1744939846522,-500.0,0.00019999,2]
[358332289,1744939846531,-500.0,0.00019999,2]
[358332291,1744939846541,-500.0,0.00019999,2]
[358332293,1744939846550,-500.0,0.00019999,2]
[358332295,1744939846560,-500.0,0.00019999,2]
[358332297,1744939846569,-543.56813318,0.00019999,2]
[358332299,1744939846580,-500.0,0.00019999,2]
[358332301,1744939846589,-500.0,0.00019999,2]
[358332303,1744939846599,-500.0,0.00019999,2]
[358332306,1744939846609,-500.0,0.00019999,2]
[358332308,1744939846619,-348.73535108,0.00019999,2]
[358332330,1744939897709,554.98,0.00025,120]
[358332331,1744939965992,1540.1328068,0.00025,120]
[358332332,1744939995882,1204.90090057,0.00018,2]
[358332333,1744940503347,210.03231216,0.0001801,2]
[358332404,1744941032213,-211.3700927,0.00018999,2]
[358332405,1744941032223,-20102.1259179,0.00019412,2]
[358332407,1744941032233,-8987.12258567,0.00019412,2]
[358332409,1744941032243,-1415.79713226,0.00019795,2]
[358332412,1744941032252,-300.0,0.00019797,2]
[358332414,1744941032262,-226.5411914,0.00019798,2]
[358332416,1744941032276,-300.0,0.00019798,2]
[358332418,1744941032286,-226.54119136,0.00019818,2]
[358332420,1744941032296,-226.54119136,0.00019838,2]
[358332422,1744941032306,-226.54119136,0.00019857,2]
[358332424,1744941032315,-503.5,0.00019873,2]
[358332426,1744941032325,-573.25758573,0.00019873,2]
[358332428,1744941032335,-385.39333941,0.00019873,2]
[358332430,1744941032345,-507.44063842,0.00019873,2]
[358332431,1744941032354,-500.0,0.00019873,2]
[358332433,1744941032363,-500.0,0.00019873,2]
[358332435,1744941032373,-500.0,0.00019873,2]
[358332437,1744941032382,-210.36575824,0.00019873,2]
[358332511,1744941038461,-289.63424176,0.00019873,2]
[358332513,1744941038471,-61.64131472,0.00019873,2]
[358332925,1744941046299,-438.35868528,0.00019873,2]
[358332926,1744941046310,-500.0,0.00019873,2]
[358332927,1744941046320,-300.0,0.00019873,2]
[358332928,1744941046331,-500.0,0.00019873,2]
[358332929,1744941046341,-502.36445301,0.00019873,2]
[358332930,1744941046351,-500.0,0.00019873,2]
[358332931,1744941046361,-500.0,0.00019873,2]
[358332932,1744941046371,-503.9357156,0.00019873,2]
[358332933,1744941046381,-500.0,0.00019873,2]
[358332934,1744941046392,-500.0,0.00019873,2]
[358332935,1744941046402,-226.54119136,0.00019877,2]
[358332936,1744941046412,-152.0,0.00019887,2]
[358332937,1744941046423,-151.0,0.00019888,2]
[358332938,1744941046433,-24397.8087067,0.00019895,2]
[358332939,1744941046445,-40069.46308788,0.00019895,2]
[358332940,1744941109429,1000.0,0.00025,120]
[358332941,1744941150244,1614.53,0.0001801,2]
[358332945,1744941692497,-238.08398424,0.0001888,2]
[358332946,1744941723512,-162.596081,0.000188,2]
[358332947,1744941723537,-75.47180323,0.00018879,2]
[358332948,1744941783666,-256.95046,0.00018879,2]
[358332949,1744941821858,1727.0,0.00018,2]
[358332950,1744941845219,-199.35156706,0.00018879,2]
[358332951,1744941904429,-100.64843294,0.00018879,2]
[358332952,1744941904457,-49.86779406,0.00018879,2]
[358332955,1744941963337,-250.0,0.00018879,2]
[358332956,1744942023226,-250.0,0.00018879,2]
[358332992,1744942232562,-300.0,0.00018879,2]
[358332993,1744942232572,-300.0,0.00018879,2]
[358332994,1744942232583,-22501.93284386,0.0001888,2]
[358332995,1744942232593,-2428.06237463,0.00019623,2]
[358332996,1744942232602,-1238.82249071,0.00019773,2]
[358332997,1744942232613,-500.0,0.00019873,2]
[358332998,1744942232622,-353.67092341,0.00019873,2]
[358332999,1744942232631,-591.82661955,0.00019873,2]
[358333000,1744942232641,-500.0,0.00019873,2]
[358333001,1744942232651,-500.0,0.00019873,2]
[358333002,1744942232661,-500.0,0.00019873,2]
[358333003,1744942232670,-500.0,0.00019873,2]
[358333004,1744942232679,-452.5478503,0.00019873,2]
[358333005,1744942232768,-11.34057416,0.00019873,2]
[358333006,1744942232779,-500.0,0.00019873,2]
[358333007,1744942232789,-151.0,0.00019888,2]
[358333008,1744942232800,-2513.853489,0.000199,2]
[358333009,1744942232810,-353.57255184,0.000199,2]
[358333010,1744942232819,-33144.08052447,0.0002,2]
[358333036,1744942238480,-500.0,0.00019999,2]
[358333038,1744942238490,-111.38400069,0.00019999,2]
[358333060,1744942238691,-388.61599931,0.00019999,2]
[358333061,1744942238701,-111.38400069,0.00019999,2]
[358333236,1744942243443,-407.4364607,0.00019999,2]
[358333237,1744942243453,-388.61599931,0.00019999,2]
[358333238,1744942243463,-500.0,0.00019999,2]
[358333239,1744942243473,-500.0,0.00019999,2]
[358333240,1744942243482,-500.0,0.00019999,2]
[358333241,1744942243492,-298.04793158,0.00019999,2]
[358333250,1744942246435,-201.95206842,0.00019999,2]
[358333251,1744942246445,-500.0,0.00019999,2]
[358333252,1744942246454,-568.67691963,0.00019999,2]
[358333253,1744942246463,-500.0,0.00019999,2]
[358333254,1744942246473,-500.0,0.00019999,2]
[358333255,1744942246482,-500.0,0.00019999,2]
[358333256,1744942246492,-500.0,0.00019999,2]
[358333257,1744942246501,-500.0,0.00019999,2]
[358333258,1744942246510,-500.0,0.00019999,2]
[358333259,1744942246519,-500.0,0.00019999,2]
[358333260,1744942246529,-500.0,0.00019999,2]
[358333261,1744942246538,-500.0,0.00019999,2]
[358333262,1744942246547,-500.0,0.00019999,2]
[358333263,1744942246556,-192.48494301,0.00019999,2]
[358333264,1744942246568,-307.51505699,0.00019999,2]
[358333265,1744942246577,-340.96410218,0.00019999,2]
[358333266,1744942246587,-500.0,0.00019999,2]
[358333267,1744942246597,-500.0,0.00019999,2]
[358333268,1744942246606,-500.0,0.00019999,2]
[358333269,1744942246615,-500.0,0.00019999,2]
[358333270,1744942246625,-5372.78130079,0.0002,2]
[358333271,1744942246637,-1271.1164866,0.0002,2]
[358333272,1744942246653,-1951.0,0.0002,2]
[358333273,1744942246673,-2874.18492575,0.0002,2]
[358333276,1744942449809,-216.99245552,0.00018591,2]
[358333277,1744943089087,815.5051214,0.00024,120]
[358333363,1744943432535,-300.65279346,0.00018779,2]
[358333365,1744943432546,-639.78654103,0.0001938,2]
[358333367,1744943432557,-195.1335575,0.00019681,2]
[358333369,1744943432568,-177.38996013,0.00019999,2]
[358333370,1744943432578,-188.72817776,0.00019999,2]
[358333372,1744943432588,-300.0,0.00019999,2]
[358333373,1744943432599,-300.0,0.00019999,2]
[358333374,1744943432610,-3972.56986595,0.0002,2]
[358333375,1744943432619,-156.24598,0.0002,2]
[358333376,1744943432629,-614.67,0.0002,2]
[358333377,1744943432640,-473.73932705,0.00020349,2]
[358333378,1744943432653,-152.29829704,0.0002035,2]
[358333379,1744943432663,-201.0,0.00020386,2]
[358333380,1744943432672,-166.0,0.00020386,2]
[358333381,1744943432682,-202.72626478,0.00020386,2]
[358333382,1744943432693,-166.0,0.00020386,2]
[358333383,1744943432702,-166.0,0.00020386,2]
[358333384,1744943432713,-169.6673243,0.00020386,2]
[358333385,1744943432724,-359.0,0.00020386,2]
[358333386,1744943432734,-359.0,0.00020386,2]
[358333387,1744943432744,-319.0,0.00020386,2]
[358333388,1744943432753,-319.0,0.00020386,2]
[358333389,1744943432763,-319.0,0.00020386,2]
[358333390,1744943432773,-359.0,0.00020386,2]
[358333391,1744943432783,-319.0,0.00020386,2]
[358333392,1744943432793,-359.0,0.00020386,2]
[358333393,1744943432803,-319.0,0.00020386,2]
[358333394,1744943432813,-204.69615029,0.00020386,2]
[358333395,1744943432824,-319.0,0.00020386,2]
[358333396,1744943432833,-319.0,0.00020386,2]
[358333397,1744943432843,-299.97460689,0.00020386,2]
[358333398,1744943432853,-545.181,0.00020481,2]
[358333399,1744943432863,-2265.703,0.00020481,2]
[358333400,1744943432872,-150.945,0.00020481,2]
[358333401,1744943432882,-155.6052105,0.000206,2]
[358333402,1744943432893,-590.8495724,0.000206,2]
[358333403,1744943432903,-150.53,0.00020673,2]
[358333404,1744943432912,-155.025,0.00020673,2]
[358333405,1744943432922,-246.67,0.00020673,2]
[358333406,1744943432932,-256.084,0.00020673,2]
[358333407,1744943432942,-172.122,0.00020673,2]
[358333408,1744943432952,-151.0,0.000207,4]
[358333409,1744943432962,-1524.19210716,0.00020798,2]
[358333410,1744943432972,-946.17393628,0.00020799,2]
[358333411,1744943432983,-946.17393627,0.00020799,2]
[358333412,1744943432993,-946.17393627,0.000208,2]
[358333413,1744943433003,-946.17393627,0.000208,2]
[358333414,1744943433013,-341.02,0.000208,3]
[358333415,1744943433024,-151.0,0.000208,3]
[358333416,1744943433035,-151.920445,0.000208,30]
[358333417,1744943433046,-946.17393627,0.000208,2]
[358333418,1744943433056,-500.0,0.00020873,2]
[358333419,1744943433067,-500.0,0.00020873,2]
[358333420,1744943433078,-500.0,0.00020873,2]
[358333421,1744943433089,-500.0,0.00020873,2]
[358333422,1744943433100,-500.0,0.00020873,2]
[358333423,1744943433110,-500.0,0.00020873,2]
[358333424,1744943433121,-500.0,0.00020873,2]
[358333425,1744943433131,-500.0,0.00020873,2]
[358333426,1744943433141,-500.0,0.00020873,2]
[358333427,1744943433152,-500.0,0.00020873,2]
[358333428,1744943433162,-500.0,0.00020873,2]
[358333429,1744943433172,-500.0,0.00020873,2]
[358333430,1744943433182,-500.0,0.00020873,2]
[358333431,1744943433192,-300.0,0.00020873,2]
[358333432,1744943433203,-151.0,0.00020886,2]
[358333433,1744943433214,-207.4,0.00020886,2]
[358333434,1744943433225,-14673.96135006,0.0002089,2]
[358333435,1744943433236,-439.12006277,0.00020898,2]
[358333436,1744943433246,-500.0,0.00020898,2]
[358333437,1744943433256,-450.99572067,0.00020898,2]
[358333438,1744943433267,-204.32206767,0.00020899,2]
[358333439,1744943433277,-167.91460554,0.00020899,2]
[358333440,1744943433288,-1060.162388,0.00020899,2]
[358333441,1744943433299,-1060.162388,0.00020899,2]
[358333442,1744943433310,-151.0,0.00020899,2]
[358333443,1744943433321,-151.0,0.00020899,2]
[358333444,1744943433332,-155.756135,0.00020899,2]
[358333445,1744943433342,-82068.29958509,0.00020899,2]
[358333446,1744943433352,-6417.1773197,0.00020899,3]
[358333447,1744943433362,-74252.30484093,0.000209,2]
[358333448,1744943433376,-25336.45612669,0.000209,2]
[358333449,1744943433388,-60810.67082298,0.000209,2]
[358333478,1744943438817,-177.38996013,0.00019999,2]
[358333480,1744943438827,-575.77261515,0.00020896,2]
[358333482,1744943438837,-322.53841235,0.00020896,2]
[358333485,1744943438847,-500.0,0.00020896,2]
[358333487,1744943438857,-500.0,0.00020896,2]
[358333489,1744943438866,-500.0,0.00020896,2]
[358333491,1744943438876,-319.98143144,0.00020896,2]
[358333493,1744943438886,-500.0,0.00020896,2]
[358333495,1744943438896,-500.0,0.00020896,2]
[358333497,1744943438905,-500.0,0.00020896,2]
[358333499,1744943438915,-500.0,0.00020896,2]
[358333501,1744943438925,-500.0,0.00020896,2]
[358333503,1744943438935,-500.0,0.00020896,2]
[358333505,1744943438945,-500.0,0.00020896,2]
[358333507,1744943438955,-500.0,0.00020896,2]
[358333509,1744943438965,-33145.13301985,0.000209,2]
[358333683,1744943440876,-177.38996013,0.00020899,2]
[358333685,1744943440886,-751.67003987,0.000209,2]
[358333687,1744943440897,-650.91495098,0.000209,2]
[358333690,1744943440909,-1352.64554896,0.000209,2]
[358333692,1744943440920,-48347.50127488,0.000209,2]
[358333766,1744943443614,-177.38996013,0.00020899,2]
[358333767,1744943443624,-1349.87541912,0.000209,2]
[358333768,1744943443635,-2261.75805476,0.000209,2]
[358333801,1744943446640,-177.38996013,0.00020899,2]
[358333803,1744943446652,-4342.55845116,0.000209,2]
[358333805,1744943446665,-117398.51144982,0.000209,2]
[358333807,1744943446675,-151.0,0.000209,3]
[358333809,1744943446685,-223.070505,0.000209,2]
[358333811,1744943446695,-151.649634,0.000209,2]
[358333813,1744943446704,-151.649634,0.000209,2]
[358333815,1744943446713,-151.0,0.000209,2]
[358333817,1744943446723,-176.34707822,0.000209,2]
[358333819,1744943446733,-1060.162388,0.000209,2]
[358333821,1744943446743,-165.793847,0.000209,2]
[358333823,1744943446753,-152.20479,0.000209,2]
[358333825,1744943446763,-151.0,0.000209,2]
[358333827,1744943446772,-151.0,0.000209,2]
[358333829,1744943446782,-1579.71978792,0.000209,3]
[358333831,1744943446791,-3060.99215444,0.00020933,2]
[358333833,1744943446801,-1169.0,0.0002095,5]
[358333835,1744943446811,-500.0,0.00020973,2]
[358333839,1744943446820,-500.0,0.00020973,2]
[358333841,1744943446830,-500.0,0.00020973,2]
[358333844,1744943446840,-500.0,0.00020973,2]
[358333846,1744943446849,-151.49981148,0.00020973,2]
[358333848,1744943446859,-500.0,0.00020973,2]
[358333850,1744943446868,-500.0,0.00020973,2]
[358333852,1744943446878,-500.0,0.00020973,2]
[358333854,1744943446886,-500.0,0.00020973,2]
[358333856,1744943446896,-500.0,0.00020973,2]
[358333858,1744943446906,-500.0,0.00020973,2]
[358333860,1744943446915,-500.0,0.00020973,2]
[358333862,1744943446925,-160.24487838,0.00020973,2]
[358333864,1744943446934,-160.29055636,0.00020973,2]
[358333866,1744943446944,-500.0,0.00020973,2]
[358333868,1744943446954,-500.0,0.00020973,2]
[358333870,1744943446963,-500.0,0.00020973,2]
[358333872,1744943446972,-500.0,0.00020973,2]
[358333874,1744943446982,-160.64263048,0.00020973,2]
[358333876,1744943446991,-500.0,0.00020973,2]
[358333878,1744943447001,-500.0,0.00020973,2]
[358333880,1744943447011,-160.14218309,0.00020973,2]
[358333882,1744943447020,-502.55712725,0.00020973,2]
[358333884,1744943447030,-500.0,0.00020973,2]
[358333886,1744943447039,-500.0,0.00020973,2]
[358333888,1744943447049,-500.0,0.00020973,2]
[358333890,1744943447059,-165.35190983,0.00020973,2]
[358333892,1744943447068,-508.07981739,0.00020973,2]
[358333894,1744943447078,-501.33029069,0.00020973,2]
[358333896,1744943447087,-500.0,0.00020973,2]
[358333898,1744943447097,-500.0,0.00020973,2]
[358333900,1744943447106,-500.0,0.00020973,2]
[358333902,1744943447116,-501.45178616,0.00020973,2]
[358333904,1744943447125,-500.0,0.00020973,2]
[358333906,1744943447135,-233.99363659,0.00020973,2]
[358333908,1744943447144,-500.0,0.00020973,2]
[358333910,1744943447153,-500.0,0.00020973,2]
[358333912,1744943447163,-500.69968492,0.00020973,2]
[358333914,1744943447172,-500.0,0.00020973,2]
[358333916,1744943447181,-502.28595875,0.00020973,2]
[358333918,1744943447191,-500.0,0.00020973,2]
[358333920,1744943447203,-500.0,0.00020973,2]
[358333922,1744943447213,-500.0,0.00020973,2]
[358333924,1744943447223,-500.0,0.00020973,2]
[358333926,1744943447232,-500.0,0.00020973,2]
[358333928,1744943447242,-500.0,0.00020973,2]
[358333930,1744943447251,-500.0,0.00020973,2]
[358333932,1744943447261,-500.0,0.00020973,2]
[358333934,1744943447272,-500.0,0.00020973,2]
[358333936,1744943447281,-500.0,0.00020973,2]
[358333938,1744943447291,-500.0,0.00020973,2]
[358333940,1744943447300,-500.0,0.00020973,2]
[358333942,1744943447309,-500.0,0.00020973,2]
[358333944,1744943447318,-569.43551316,0.00020973,2]
[358333948,1744943447345,-48.16466271,0.00020973,2]
[358333950,1744943447358,-304.90737969,0.00020973,2]
[358333952,1744943447370,-195.09262031,0.00020973,2]
[358333954,1744943447380,-248.87750469,0.00020973,2]
[358334094,1744944631709,-976.80319086,0.000189,2]
[358334096,1744944631719,-4261.90969457,0.00019854,2]
[358334099,1744944631731,-813.88193433,0.00019854,2]
[358334101,1744944631745,-151.0,0.00020354,2]
[358334103,1744944631755,-151.0,0.00020354,2]
[358334105,1744944631764,-151.0,0.00020354,2]
[358334107,1744944631774,-151.0,0.00020354,2]
[358334109,1744944631783,-169.0,0.00020354,2]
[358334111,1744944631793,-151.0,0.00020354,2]
[358334114,1744944631802,-266.44891589,0.00020354,2]
[358334117,1744944631812,-272.55198691,0.00020365,2]
[358334120,1744944631822,-945.20679899,0.00020365,2]
[358334123,1744944631832,-300.0,0.00020472,2]
[358334126,1744944631842,-300.0,0.00020472,2]
[358334129,1744944631852,-2248.0,0.00020473,2]
[358334131,1744944631863,-21156.1234088,0.0002079,2]
[358334133,1744944631872,-338.526,0.00020872,2]
[358334135,1744944631882,-18877.87260312,0.00020873,2]
[358334137,1744944631892,-170.10209688,0.00020873,2]
[358334139,1744944631902,-500.0,0.00020873,2]
[358334141,1744944631911,-503.60412266,0.00020873,2]
[358334143,1744944631921,-500.0,0.00020873,2]
[358334145,1744944631930,-500.0,0.00020873,2]
[358334147,1744944631941,-500.0,0.00020873,2]
[358334149,1744944631950,-500.0,0.00020873,2]
[358334150,1744944631960,-500.0,0.00020873,2]
[358334151,1744944631970,-500.0,0.00020873,2]
[358334153,1744944631981,-500.0,0.00020873,2]
[358334155,1744944631991,-500.0,0.00020873,2]
[358334157,1744944632002,-300.0,0.00020873,2]
[358334159,1744944632012,-501.51625002,0.00020873,2]
[358334162,1744944632022,-500.0,0.00020873,2]
[358334164,1744944632032,-500.0,0.00020873,2]